bitfinex/quotes_ETHUSD_20250529
["timestamp","ask_amount","ask_price","bid_price","bid_amount"]
[1748533113923,3.984,2652.1,2651.8,3.77092004]
[1748533114283,0.9781,2652.2,2651.6,0.38623955]
[1748533114486,3.983,2652.1,2651.9,3.77080259]
[1748533114686,0.9717,2652.4,2651.9,3.77080259]
[1748533114926,0.35507594,2652.3,2652.2,3.77045471]
[1748533115104,0.35507594,2652.3,2652.0,3.77065732]
[1748533115105,3.984,2652.3,2652.0,3.77065732]
[1748533115281,3.984,2652.3,2652.0,3.77072797]
[1748533115486,3.984,2652.3,2651.3,4.13464496]
[1748533115487,0.9717,2652.2,2651.8,3.77096163]
[1748533115830,0.9717,2652.2,2651.5,3.86829736]
[1748533116130,0.9717,2652.2,2651.6,3.77128433]
[1748533116131,1.078,2652.1,2651.6,3.77128433]
[1748533116346,1.078,2652.1,2651.3,3.86858872]
[1748533116632,0.9914,2650.3,2649.9,3.77372633]
[1748533116832,0.9914,2650.3,2649.5,0.0969]
[1748533116833,4.9754,2650.3,2649.8,0.38543032]
[1748533117035,1.98479059,2650.9,2650.1,0.1169]
[1748533117200,4.33882979,2650.8,2650.1,0.1169]
[1748533117528,4.33882979,2650.8,2650.2,14.10037786]
[1748533117529,3.984,2650.8,2650.2,14.10037786]
[1748533117832,3.984,2650.8,2650.3,3.77302915]
[1748533118003,3.984,2650.8,2650.2,0.32710255]
[1748533118201,0.9914,2650.9,2650.2,0.32710255]
[1748533118419,3.99,2650.7,2650.6,3.7727307]
[1748533118615,0.9914,2650.9,2650.2,4.1003701]
[1748533118816,4.35458115,2650.8,2650.6,3.77271084]
[1748533119019,4.0,2650.8,2650.6,3.77271084]
[1748533119338,4.0,2650.8,2650.2,0.32710255]
[1748533119537,4.0,2650.8,2650.5,3.77277714]
[1748533119695,4.0,2650.8,2650.4,3.77293264]
[1748533120145,4.0,2650.8,2650.5,3.77285263]
[1748533120321,4.0,2650.8,2650.4,3.77296072]
[1748533120629,0.9438,2651.3,2650.8,3.77240022]
[1748533120801,4.35178562,2651.2,2650.8,3.77240022]
[1748533121006,4.35178562,2651.1,2650.9,3.77218198]
[1748533121201,3.997,2651.1,2650.8,3.77238691]
[1748533121431,0.9438,2651.3,2650.6,3.77260116]
[1748533121432,0.35479446,2651.0,2650.6,3.77260116]
[1748533121636,0.55,2650.6,2650.2,0.32710255]
[1748533121842,8.55,2650.8,2650.2,0.32710255]
[1748533121843,0.9466,2650.3,2650.2,0.32710255]
[1748533122060,2.38454449,2650.3,2650.2,0.32710255]
[1748533122345,0.35477152,2650.3,2650.2,0.32710255]
[1748533122559,4.011,2650.3,2650.2,0.32710255]
[1748533122865,1.087,2650.7,2650.2,4.10032912]
[1748533122866,4.013,2650.5,2650.2,4.10032912]
[1748533123363,1.40885822,2651.1,2650.2,0.70727045]
[1748533123515,4.36677029,2651.0,2650.5,3.77278918]
[1748533123712,4.36677029,2651.0,2650.3,3.77315775]
[1748533123713,0.35477029,2650.9,2650.2,0.70727045]
[1748533123927,4.016,2651.0,2650.7,3.7725604]
[1748533124251,4.016,2651.0,2650.3,0.45006919]
[1748533124451,0.35487805,2650.9,2650.7,3.77258246]
[1748533124610,4.016,2651.0,2650.6,3.77266093]
[1748533124816,0.35458029,2650.9,2650.6,3.77266093]
[1748533125024,4.016,2651.0,2650.6,3.77266093]
[1748533125243,0.35453014,2650.9,2650.5,3.77286835]
[1748533125449,4.016,2651.0,2650.6,3.7727307]
[1748533125649,0.35466247,2650.9,2650.6,3.7727307]
[1748533125834,4.016,2651.0,2650.5,3.77286216]
[1748533126036,0.35469155,2650.9,2650.4,3.77301539]
[1748533126236,4.62294107,2651.3,2650.5,3.77275809]
[1748533126427,4.36665777,2651.2,2650.5,3.77275809]
[1748533126623,0.35471813,2651.1,2650.5,3.77275809]
[1748533126938,0.35471813,2651.0,2650.4,3.7729043]
[1748533127141,4.36571813,2650.9,2650.6,3.77270379]
[1748533127341,4.011,2650.9,2650.7,3.77248628]
[1748533127663,0.35481429,2650.8,2650.6,3.8694925]
[1748533127952,4.011,2650.9,2650.6,0.0969]
[1748533128115,0.35479799,2650.8,2650.6,0.0969]
[1748533128319,4.011,2650.9,2650.6,0.0969]
[1748533128516,0.35479739,2650.8,2650.6,0.0969]
[1748533128755,4.011,2650.9,2650.6,0.0969]
[1748533129057,0.34704386,2650.8,2650.6,0.0969]
[1748533129239,4.011,2650.9,2650.6,0.0969]
[1748533130164,0.44326175,2651.2,2650.6,0.0969]
[1748533130355,0.407871,2651.3,2650.6,0.0969]
[1748533130527,0.407871,2651.3,2650.3,12.554637]
[1748533130528,4.004,2651.1,2650.3,12.554637]
[1748533130732,4.004,2651.1,2650.2,0.70727045]
[1748533130733,4.004,2651.1,2650.2,14.48054734]
[1748533131047,4.004,2651.1,2650.6,3.772698]
[1748533131735,4.004,2651.1,2650.4,3.77297254]
[1748533131736,0.9707,2651.0,2650.4,3.77297254]
[1748533132047,0.9707,2651.0,2650.4,3.77293441]
[1748533132251,0.9707,2651.0,2650.2,0.70727045]
[1748533132415,0.49747,2650.9,2650.2,0.70727045]
[1748533132616,0.49747,2650.9,2650.2,4.48056109]
[1748533132842,0.49747,2650.9,2650.3,3.77303326]
[1748533133043,4.26977516,2650.9,2650.2,4.48054048]
[1748533133247,0.49747,2650.9,2650.2,4.48054048]
[1748533133428,0.52403941,2650.8,2650.3,3.77314359]
[1748533133752,0.49747,2650.9,2650.4,3.77299542]
[1748533133955,0.49747,2650.9,2650.3,3.77314724]
[1748533134389,0.49747,2650.9,2650.2,0.70727045]
[1748533134390,0.49747,2650.9,2650.4,3.77301496]
[1748533134666,4.018,2650.8,2650.5,3.77282334]
[1748533134826,4.018,2650.8,2650.4,3.77293877]
[1748533134827,4.01321989,2650.8,2650.4,3.77293877]
[1748533135030,4.01321989,2650.8,2650.3,3.77307619]
[1748533135568,4.01321989,2650.8,2650.2,4.48049053]
[1748533135860,4.01321989,2650.8,2650.3,3.77315775]
[1748533136066,4.51161188,2650.8,2650.3,3.77315775]
[1748533136243,4.51161188,2650.8,2650.2,0.70727045]
[1748533136442,4.51161188,2650.8,2650.3,3.77312536]
[1748533136645,4.51161188,2650.8,2650.2,4.4805477]
[1748533137054,4.51161188,2650.8,2650.3,3.77313303]
[1748533137256,0.45116119,2650.7,2650.2,4.48045965]
[1748533137457,0.9869,2650.6,2650.2,0.70727045]
[1748533137849,0.9869,2650.6,2650.3,3.77308226]
[1748533138075,0.9869,2650.6,2650.4,3.77288147]
[1748533138395,0.971,2650.9,2650.5,3.77282334]
[1748533138544,0.2058,2650.8,2650.7,3.77258837]
[1748533138738,4.012,2650.8,2650.7,3.77248281]
[1748533139137,4.012,2650.8,2650.6,3.77266382]
[1748533139366,0.971,2651.2,2650.7,3.77258837]
[1748533139583,0.971,2651.2,2650.4,0.0969]
[1748533139890,4.011,2651.1,2650.9,3.77227171]
[1748533140055,4.011,2651.1,2650.4,0.55462029]
[1748533140241,4.011,2651.1,2650.7,3.77249155]
[1748533140642,4.011,2651.1,2650.6,3.77271355]
[1748533140643,4.011,2651.1,2650.6,3.77266067]
[1748533140975,8.3220438,2651.1,2650.4,3.86988195]
[1748533141136,0.9641,2650.9,2650.4,3.77294615]
[1748533141338,0.9641,2650.9,2650.2,0.70727045]
[1748533141339,0.9641,2650.9,2650.3,3.77311086]
[1748533141690,0.9641,2650.9,2650.2,4.48048603]
[1748533141891,0.95838828,2650.9,2650.3,3.77313346]
[1748533142087,1.50922582,2650.9,2650.3,3.77313346]
[1748533142234,1.50922582,2650.9,2650.5,3.77276369]
[1748533142441,4.007,2650.8,2650.6,3.77261871]
[1748533142640,4.007,2650.8,2650.7,3.77258837]
[1748533142836,4.007,2650.8,2650.2,0.80987045]
[1748533143082,4.007,2650.8,2650.7,3.77258837]
[1748533143289,4.007,2650.8,2650.6,3.77265334]
[1748533144379,0.407871,2651.3,2650.9,3.77222184]
[1748533144576,4.35932562,2651.2,2650.2,6.93245265]
[1748533144792,0.35532562,2651.1,2650.5,3.77287304]
[1748533144939,0.9134,2651.0,2650.6,3.77272342]
[1748533145277,0.9134,2651.0,2650.6,3.77264034]
[1748533145476,0.9134,2651.0,2650.2,5.04348313]
[1748533145477,0.35548783,2650.9,2650.2,0.70727045]
[1748533145786,0.35548783,2650.8,2650.2,0.70727045]
[1748533145992,0.35548783,2650.7,2650.6,3.77266965]
[1748533146150,4.35911927,2650.7,2650.5,3.77278126]
[1748533146355,4.003,2650.7,2650.5,3.77278126]
[1748533147875,4.003,2650.7,2650.6,3.7727307]
[1748533148385,4.003,2650.7,2650.2,0.70727045]
[1748533148586,4.003,2650.7,2650.5,3.77276256]
[1748533148894,0.9134,2651.0,2650.3,3.77315775]
[1748533148895,0.75644326,2650.6,2650.3,3.77314329]
[1748533149192,0.75644326,2650.6,2650.2,0.70727045]
[1748533149193,3.999,2650.6,2650.5,3.77287304]
[1748533149339,0.9134,2651.0,2650.5,3.7727913]
[1748533149540,4.35496355,2650.9,2650.7,3.77250987]
[1748533149753,3.999,2650.9,2650.8,3.77244605]
[1748533149967,0.35594064,2650.9,2650.8,3.77244605]
[1748533150145,4.35494064,2650.9,2650.8,3.77244605]
[1748533150541,0.35594064,2650.9,2650.8,3.77244605]
[1748533150742,0.59118746,2651.5,2650.8,3.77244605]
[1748533150743,0.44496012,2651.5,2650.8,4.52691217]
[1748533150960,4.35401338,2651.4,2651.0,3.77210132]
[1748533151184,0.35601338,2651.3,2650.6,10.0]
[1748533151379,0.35601338,2651.2,2650.5,0.0395]
[1748533151583,3.998,2651.4,2650.8,3.77235783]
[1748533151769,3.998,2651.4,2650.6,10.0]
[1748533151770,0.35594296,2651.3,2650.6,3.77271437]
[1748533151955,4.35994296,2651.2,2651.0,3.77215423]
[1748533152156,4.35994296,2651.2,2650.8,3.77239011]
[1748533152157,4.004,2651.2,2650.9,3.77222381]
[1748533152586,0.35602278,2651.1,2650.9,3.77222381]
[1748533152783,4.004,2651.2,2651.0,3.77216144]
[1748533152982,0.35602643,2651.1,2651.0,3.77216144]
[1748533153159,4.001,2651.1,2651.0,3.77216144]
[1748533154049,4.001,2651.1,2650.9,3.77222257]
[1748533154379,4.001,2651.1,2651.0,3.77216144]
[1748533155747,3.997,2651.1,2651.0,3.77216144]
[1748533156444,0.9825,2651.5,2650.8,3.77244605]
[1748533156445,3.999,2651.5,2651.4,3.77159236]
[1748533156643,4.35496553,2651.5,2651.1,3.77198119]
[1748533156885,4.35496553,2651.5,2651.3,3.77173462]
[1748533156886,0.35596553,2651.4,2651.3,3.77173462]
[1748533157451,4.35396553,2651.4,2651.3,3.77173462]
[1748533157864,3.998,2651.4,2651.2,3.77183582]
[1748533158066,3.998,2651.4,2651.0,3.7721117]
[1748533158264,4.3978,2651.4,2651.0,3.7721117]
[1748533158465,4.3978,2651.4,2651.1,3.77199561]
[1748533158880,4.3978,2651.4,2650.9,3.77230374]
[1748533159107,1.29678723,2651.3,2650.4,10.0]
[1748533159297,0.35508723,2651.2,2650.2,0.74677045]
[1748533159608,0.9417,2651.3,2651.0,3.7721032]
[1748533159971,0.35509237,2651.2,2650.9,3.77222303]
[1748533160172,0.9417,2651.3,2651.2,0.0052174]
[1748533160375,2.20777232,2651.3,2651.2,0.0052174]
[1748533161010,2.20777232,2651.3,2650.6,3.77271263]
[1748533161210,0.35497124,2651.2,2650.6,3.77262387]
[1748533161411,0.35497124,2651.1,2650.7,3.77244831]
[1748533161622,0.9833,2650.8,2649.4,3.77431861]
[1748533161791,0.9833,2650.6,2649.9,3.77363334]
[1748533161977,0.9833,2650.6,2650.2,3.77327213]
[1748533161978,0.35485661,2650.5,2650.2,3.77327213]
[1748533162180,0.9833,2650.6,2650.2,0.3719513]
[1748533162413,0.9833,2650.6,2650.0,3.77354944]
[1748533162414,0.35480981,2650.5,2650.0,3.77354944]
[1748533162598,0.9833,2650.6,2650.1,3.77343959]
[1748533162800,0.35464565,2650.5,2649.4,3.77443949]
[1748533163003,1.85898301,2650.6,2649.5,3.77429703]
[1748533163304,0.35463269,2650.5,2649.9,3.77359465]
[1748533163484,1.85898301,2650.6,2650.0,3.773562]
[1748533163822,1.85898301,2650.6,2649.6,3.77415458]
[1748533163823,0.9723,2650.4,2649.6,3.77415458]
[1748533164127,0.9723,2650.4,2649.5,4.15123173]
[1748533164277,0.9384,2650.2,2649.5,4.15126976]
[1748533164480,4.007,2650.1,2649.6,3.77412161]
[1748533164778,1.44502083,2650.2,2649.1,3.79485778]
[1748533164779,1.44502083,2650.2,2649.4,3.77442476]
[1748533164978,1.44502083,2650.2,2649.2,10.0]
[1748533164979,0.9384,2650.2,2649.2,10.0]
[1748533165179,0.44357077,2650.8,2649.3,1.88909824]
[1748533165378,1.086,2650.9,2649.4,13.77443949]
[1748533165379,0.9939,2650.6,2649.4,13.77443949]
[1748533165607,0.35428499,2650.5,2650.0,3.77351474]
[1748533165778,0.5355185,2650.5,2650.0,3.77350587]
[1748533165979,0.5355185,2650.5,2649.9,3.77366613]
[1748533166215,0.5355185,2650.5,2649.5,3.77429703]
[1748533166404,0.9939,2650.6,2649.5,3.77429703]
[1748533166405,0.9939,2650.6,2650.1,3.77337074]
[1748533166579,0.9939,2650.6,2649.7,3.77399309]
[1748533166580,0.9939,2650.6,2649.7,1.88909824]
[1748533166781,0.9939,2650.6,2650.2,3.77321912]
[1748533167419,0.9939,2650.6,2649.5,11.77426855]
[1748533167618,0.9939,2650.6,2649.9,3.77366757]
[1748533167818,1.3553142,2650.5,2649.6,3.77412269]
[1748533168022,3.77321173,2650.3,2649.5,3.77425077]
[1748533168221,0.9117,2650.1,2649.4,3.77443158]
[1748533168410,4.47850564,2650.0,2649.4,3.77443158]
[1748533168605,4.47850564,2650.0,2649.3,3.7745025]
[1748533168816,4.47850564,2650.0,2649.4,3.7744286]
[1748533168817,0.9285,2649.9,2649.4,3.7744286]
[1748533168983,0.9285,2649.9,2649.3,3.77450691]
[1748533169183,0.9285,2649.9,2649.4,3.77441031]
[1748533169382,1.46920056,2649.9,2649.4,3.77441031]
[1748533169582,1.46920056,2649.9,2649.1,0.39907811]
[1748533169993,1.46920056,2649.9,2649.4,3.77432091]
[1748533170225,1.46920056,2649.9,2649.4,3.77443949]
[1748533170528,4.9375,2649.9,2649.6,3.77408871]
[1748533170697,4.9375,2649.9,2649.6,3.77415097]
[1748533170897,4.9375,2649.9,2649.5,3.77421943]
[1748533171300,4.9375,2649.9,2649.4,3.7744102]
[1748533171489,4.9375,2649.9,2649.2,3.77468769]
[1748533171681,4.9375,2649.9,2649.1,0.39907811]
[1748533172120,4.92907752,2649.9,2649.4,3.77431271]
[1748533172428,4.92907752,2649.9,2649.3,3.77456587]
[1748533172595,8.0,2649.8,2649.2,3.77472444]
[1748533172798,8.0,2649.8,2649.2,3.7747232]
[1748533173110,8.0,2649.8,2649.1,4.17391736]
[1748533173313,7.78281662,2649.9,2649.1,0.02]
[1748533173314,11.77472444,2649.2,2649.1,0.02]
[1748533173535,11.77472444,2649.2,2648.1,0.02]
[1748533173536,4.013,2649.2,2648.1,0.02]
[1748533173684,8.0,2649.1,2648.1,0.02]
[1748533174063,4.014,2649.4,2648.4,10.0]
[1748533174211,4.014,2649.4,2649.2,3.77469087]
[1748533174414,4.014,2649.4,2649.3,3.77458196]
[1748533174624,1.086,2650.0,2648.8,3.77523883]
[1748533174625,1.086,2650.0,2649.4,3.77441422]
[1748533174842,4.014,2649.9,2649.0,3.77500943]
[1748533175037,4.014,2649.9,2648.8,0.0297]
[1748533175038,4.014,2649.8,2649.4,3.77436663]
[1748533175264,4.014,2649.8,2649.2,3.77461705]
[1748533175265,4.61536,2649.8,2649.2,3.77461705]
[1748533175954,0.9726,2649.7,2648.8,0.0297]
[1748533176157,0.9726,2649.7,2649.4,3.77439564]
[1748533176158,4.021,2649.6,2649.4,3.77439564]
[1748533176319,4.021,2649.6,2648.5,0.0297]
[1748533176518,4.021,2649.6,2648.7,3.77534043]
[1748533176747,4.021,2649.6,2648.6,3.77557955]
[1748533176947,4.03,2649.5,2649.2,3.77470715]
[1748533177161,4.03,2649.5,2649.4,3.77443949]
[1748533178018,0.9726,2649.7,2649.5,3.77422689]
[1748533178215,5.0016,2649.7,2649.5,3.77422112]
[1748533178444,5.0016,2649.7,2649.1,3.77481043]
[1748533178759,5.0016,2649.7,2649.0,0.0297]
[1748533178760,0.9726,2649.7,2649.5,3.7742371]
[1748533178943,0.9726,2649.7,2649.4,3.77438704]
[1748533178944,4.9996,2649.7,2649.4,3.77438704]
[1748533179150,0.9712,2650.1,2649.7,3.77389853]
[1748533179473,4.027,2649.8,2649.4,3.77437418]
[1748533180141,4.027,2649.8,2649.3,3.77446281]
[1748533180142,0.9712,2649.7,2649.3,3.77446281]
[1748533180548,0.9712,2649.7,2649.2,3.77470895]
[1748533180850,0.9712,2649.7,2649.4,3.77443736]
[1748533181056,4.024,2649.6,2649.4,3.77443736]
[1748533181238,4.024,2649.6,2649.5,3.77429703]
[1748533181444,4.024,2649.6,2649.3,3.77448523]
[1748533181649,4.024,2649.6,2649.2,4.15397102]
[1748533181865,4.024,2649.6,2649.4,3.77442548]
[1748533182169,4.026,2649.6,2649.5,3.77429703]
[1748533184298,0.9384,2650.0,2649.8,3.77385038]
[1748533184586,4.022,2649.9,2649.2,0.3836372]
[1748533184744,4.022,2649.9,2649.6,3.77410956]
[1748533184932,4.022,2649.9,2649.5,3.7741774]
[1748533185377,4.022,2649.9,2649.4,3.77441927]
[1748533185749,4.022,2649.9,2649.5,3.77429363]
[1748533186077,4.022,2649.9,2649.3,3.7745754]
[1748533186078,0.51987529,2649.8,2649.4,3.77440887]
[1748533186278,0.51987529,2649.8,2649.5,3.77428081]
[1748533186486,0.51987529,2649.8,2649.5,3.77429014]
[1748533186980,0.51987529,2649.8,2649.3,3.77454384]
[1748533187186,4.022,2649.9,2649.5,3.77420004]
[1748533188253,1.1767529,2650.0,2649.6,3.7740868]
[1748533188469,4.018,2649.8,2649.6,3.7740868]
[1748533188865,4.018,2649.8,2648.9,3.77515089]
[1748533188866,2.264,2649.1,2647.6,0.514]
[1748533189153,0.9133,2648.9,2647.8,0.37616595]
[1748533189354,4.45736905,2648.8,2647.8,0.37616595]
[1748533189569,4.103,2648.8,2647.9,3.77648045]
[1748533189787,4.103,2648.8,2648.0,3.77641065]
[1748533189788,0.87915451,2648.7,2648.0,3.77641065]
[1748533189985,0.87915451,2648.7,2647.8,4.15287764]
[1748533190312,0.9429,2648.6,2647.8,0.37616595]
[1748533190447,4.108,2648.5,2648.2,3.77607697]
[1748533190646,4.108,2648.5,2648.4,3.77586467]
[1748533190846,4.108,2648.5,2648.3,3.77598731]
[1748533191057,0.9429,2648.6,2648.3,3.77599025]
[1748533191260,4.108,2648.6,2648.5,3.77571109]
[1748533191984,0.9074,2649.2,2648.6,3.7755739]
[1748533192148,0.35408656,2649.1,2648.5,3.77572129]
[1748533192348,4.105,2649.0,2648.6,3.77545884]
[1748533192552,4.105,2649.0,2648.5,3.7757221]
[1748533192858,4.105,2649.0,2648.6,3.77557955]
[1748533193057,4.104,2648.9,2648.7,3.77541924]
[1748533193386,4.104,2648.9,2648.1,1.92036156]
[1748533193387,4.5144,2648.9,2648.1,0.02]
[1748533193547,4.104,2648.9,2648.5,3.77569958]
[1748533193749,4.104,2648.9,2648.5,3.77572184]
[1748533193945,4.104,2648.9,2648.7,3.77533957]
[1748533194292,4.104,2648.9,2648.1,0.02]
[1748533194293,4.104,2648.9,2648.5,3.77565926]
[1748533194488,4.104,2648.9,2648.5,3.77564753]
[1748533194787,4.104,2648.9,2648.5,3.77567323]
[1748533194951,4.104,2648.9,2648.3,3.77591823]
[1748533195146,4.104,2648.9,2648.3,1.37959182]
[1748533195346,4.104,2648.9,2648.3,3.77589762]
[1748533195549,4.104,2648.9,2648.3,3.77600724]
[1748533196091,4.104,2648.9,2648.2,3.77614488]
[1748533196092,4.104,2648.9,2648.1,10.02]
[1748533196289,4.104,2648.9,2648.4,3.77579253]
[1748533196491,4.104,2648.9,2648.5,3.77569539]
[1748533196719,0.9074,2649.2,2648.1,0.02]
[1748533196720,4.103,2648.8,2648.1,0.02]
[1748533196879,4.103,2648.8,2647.9,0.9346]
[1748533196880,4.103,2648.8,2648.5,3.77565119]
[1748533197079,4.103,2648.8,2647.8,5.67708185]
[1748533197080,4.103,2648.8,2648.4,3.77579496]
[1748533197312,4.103,2648.8,2648.5,3.77571958]
[1748533197511,4.103,2648.8,2648.4,0.385167]
[1748533197512,4.103,2648.8,2648.4,3.77580683]
[1748533197728,4.103,2648.8,2648.5,3.77570406]
[1748533198093,4.103,2648.8,2648.4,3.77582298]
[1748533198300,4.103,2648.8,2648.3,3.77593222]
[1748533198500,0.9398,2648.7,2647.7,3.77686293]
[1748533198711,0.9398,2648.7,2648.2,3.77603263]
[1748533199096,0.9398,2648.7,2647.8,0.37768629]
[1748533199297,0.9398,2648.7,2648.0,3.77636309]
[1748533199786,0.9398,2648.7,2648.1,3.77629127]
[1748533199985,0.9398,2648.7,2648.0,3.77637132]
[1748533200185,0.9398,2648.7,2647.8,4.15435248]
[1748533200398,0.9398,2648.7,2647.7,0.37916587]
[1748533200399,10.093,2648.6,2647.7,0.37916587]
[1748533200700,0.946,2648.1,2647.5,2.03542516]
[1748533200902,0.946,2648.1,2647.8,3.77671905]
[1748533201094,0.9262,2648.4,2647.8,3.77665733]
[1748533201294,5.49438508,2648.4,2647.7,4.15625234]
[1748533201524,5.49438508,2648.4,2647.8,3.77669252]
[1748533201819,5.49438508,2648.4,2647.8,3.77660372]
[1748533202022,5.49438508,2648.4,2648.1,3.7762609]
[1748533202023,0.9262,2648.4,2648.1,3.7762609]
[1748533202208,0.9262,2648.4,2647.5,3.93578672]
[1748533202209,4.099,2648.3,2648.0,3.77642776]
[1748533202396,4.099,2648.3,2647.5,3.93578672]
[1748533202397,4.099,2648.3,2648.2,3.77614983]
[1748533202595,4.099,2648.3,2647.8,3.87432029]
[1748533202596,4.099,2648.3,2648.0,3.77633908]
[1748533202808,4.099,2648.3,2647.7,4.1605953]
[1748533203016,4.099,2648.3,2648.1,3.77627342]
[1748533203215,0.9262,2648.4,2648.3,3.77600724]
[1748533203745,0.9262,2648.4,2647.8,0.41605953]
[1748533203746,0.9262,2648.4,2648.2,3.77608701]
[1748533203923,0.9262,2648.4,2648.0,3.77643253]
[1748533204153,0.9262,2648.4,2647.7,4.15421712]
[1748533204453,0.9449,2648.2,2647.6,3.77691972]
[1748533204822,0.9449,2648.2,2647.7,3.77683918]
[1748533205010,0.9449,2648.2,2647.8,3.77670105]
[1748533205212,0.9449,2648.2,2648.0,3.77641293]
[1748533205415,5.0519,2648.2,2647.5,2.41456938]
[1748533205638,5.0519,2648.2,2647.9,3.77650262]
[1748533205815,5.0519,2648.2,2647.8,3.77671888]
[1748533206005,5.0519,2648.2,2647.9,3.77648981]
[1748533206207,5.0519,2648.2,2647.5,2.41456938]
[1748533206650,5.0519,2648.2,2647.7,3.77683989]
[1748533206849,5.93467766,2648.2,2647.7,3.77683989]
[1748533207052,5.93467766,2648.2,2647.8,3.7766795]
[1748533207254,5.93467766,2648.2,2647.7,3.77679296]
[1748533207756,9.71087236,2648.2,2647.5,6.19169977]
[1748533207965,9.71087236,2648.2,2647.6,3.77687183]
[1748533207966,0.97108724,2648.1,2647.6,3.77687183]
[1748533208365,0.97108724,2648.1,2647.5,6.19165201]
[1748533209187,0.97108724,2648.1,2647.5,6.19168799]
[1748533209471,5.0519,2648.2,2647.5,6.19165518]
[1748533209670,8.82806465,2648.2,2647.5,2.41456938]
[1748533210074,8.82806465,2648.2,2647.5,6.19171052]
[1748533210075,5.0519,2648.2,2647.5,6.19171052]
[1748533210372,5.0519,2648.2,2647.6,3.77691192]
[1748533210673,4.095,2648.1,2647.5,2.41456938]
[1748533210874,0.9449,2648.2,2647.5,2.41456938]
[1748533210875,0.9449,2648.2,2647.9,3.77644981]
[1748533211033,4.096,2648.1,2647.9,3.77644981]
[1748533211239,4.096,2648.1,2647.6,3.77694311]
[1748533211432,4.096,2648.1,2647.6,3.77693203]
[1748533211759,4.096,2648.1,2647.7,3.7768476]
[1748533211955,0.9449,2648.2,2647.9,3.77650641]
[1748533212156,4.093,2648.1,2647.8,3.7766606]
[1748533212361,4.093,2648.1,2647.7,3.7768156]
[1748533212569,4.093,2648.1,2647.8,3.77669845]
[1748533212973,0.9449,2648.2,2647.5,2.65602632]
[1748533213181,4.091,2648.1,2647.9,3.77650322]
[1748533213471,4.091,2648.1,2647.8,3.77665167]
[1748533214375,4.091,2648.1,2647.8,3.77666062]
[1748533214575,4.091,2648.1,2647.8,3.77665731]
[1748533214736,4.091,2648.1,2647.9,3.77651072]
[1748533214936,4.091,2648.1,2647.7,3.77686293]
[1748533215274,4.091,2648.1,2647.8,3.7766445]
[1748533215530,4.091,2648.1,2647.5,2.65602632]
[1748533215531,1.0014,2648.0,2647.5,2.41456938]
[1748533215929,0.9438,2647.8,2647.5,2.03542516]
[1748533216287,1.012,2647.6,2647.5,2.03542516]
[1748533216926,5.62239036,2647.6,2647.5,2.03542516]
[1748533217448,1.84538478,2647.6,2647.5,2.03542516]
[1748533217885,5.62239036,2647.6,2647.5,2.03542516]
[1748533218297,5.2678967,2647.6,2647.5,2.03542516]
[1748533218525,1.84584727,2647.6,2647.5,2.03542516]
[1748533218725,5.45395615,2647.6,2647.5,2.03542516]
[1748533219313,5.46295615,2647.6,2647.5,2.03542516]
[1748533219707,5.46195615,2647.6,2647.5,2.03542516]
[1748533219939,5.46295615,2647.6,2647.5,2.03542516]
[1748533220111,5.108,2647.6,2647.5,2.03542516]
[1748533220645,1.012,2647.6,2647.5,5.81257341]
[1748533220938,0.9753,2647.9,2647.5,2.03542516]
[1748533221738,4.096,2647.8,2647.5,2.03542516]
[1748533221940,0.50713,2647.8,2647.5,2.03542516]
[1748533222141,4.096,2647.7,2647.5,2.03542516]
[1748533222313,0.9753,2647.9,2647.5,2.03542516]
[1748533222513,4.098,2647.8,2647.5,2.03542516]
[1748533222715,0.9753,2647.9,2647.5,5.81254031]
[1748533222914,4.097,2647.8,2647.5,2.03542516]
[1748533223132,4.096,2647.7,2647.5,6.39383978]
[1748533223330,0.9753,2647.9,2647.8,3.77672029]
[1748533223515,0.9753,2647.9,2647.5,2.03542516]
[1748533223516,1.0173,2648.3,2647.9,3.77656474]
[1748533223851,4.097,2648.2,2647.9,3.77649292]
[1748533224148,4.60843,2648.2,2647.9,3.77649292]
[1748533224444,4.095,2648.1,2648.0,3.77635124]
[1748533224640,1.0173,2648.3,2648.1,3.7762318]
[1748533224961,4.094,2648.2,2648.1,3.77621799]
[1748533225107,4.094,2648.2,2648.1,3.77629243]
[1748533225305,0.997,2648.2,2647.5,2.03542516]
[1748533225504,0.997,2648.0,2647.7,3.7767472]
[1748533225709,5.097,2648.0,2647.6,3.77689694]
[1748533226062,5.097,2648.0,2647.5,2.03542516]
[1748533226204,5.097,2648.0,2647.6,3.77690619]
[1748533226542,5.097,2648.0,2647.7,3.77678896]
[1748533226783,5.097,2648.0,2647.7,3.77675279]
[1748533227057,5.097,2648.0,2647.6,3.7769385]
[1748533227666,5.097,2648.0,2647.5,5.81252698]
[1748533227667,5.097,2648.0,2647.7,3.77685397]
[1748533228230,3.77664356,2647.9,2647.5,2.03542516]
[1748533228574,9.38315386,2648.0,2647.5,2.03542516]
[1748533228575,0.35531979,2647.8,2647.5,2.03542516]
[1748533228722,0.997,2648.0,2647.5,2.03542516]
[1748533228924,4.093,2647.9,2647.5,5.81253851]
[1748533229259,4.093,2647.9,2647.6,3.77693998]
[1748533229435,4.093,2647.9,2647.5,2.03542516]
[1748533229436,4.093,2647.9,2647.7,3.77684061]
[1748533229627,4.093,2647.9,2647.6,3.77694256]
[1748533230378,4.602,2647.9,2647.4,3.77720697]
[1748533230663,4.602,2647.9,2647.5,3.77713868]
[1748533230850,0.997,2648.0,2647.2,3.7775763]
[1748533231053,4.091,2647.8,2647.6,3.77693023]
[1748533231826,4.091,2647.8,2647.5,3.7770081]
[1748533232057,4.091,2647.8,2647.6,3.77693377]
[1748533232560,4.091,2647.8,2647.5,3.77706962]
[1748533232769,4.091,2647.8,2647.6,3.7769467]
[1748533233438,0.9491,2648.3,2647.6,0.75541275]
[1748533233626,4.43986877,2648.2,2648.0,3.77636356]
[1748533233826,4.084,2648.2,2648.0,3.77636356]
[1748533234272,0.9491,2648.3,2648.1,3.77629243]
[1748533234492,1.58749982,2648.7,2648.5,3.7757221]
[1748533234493,0.9239,2648.6,2648.5,3.7757221]